[Event "January 9 Early 2024"]
[Site "https://www.chess.com"]
[Date "2024.01.11"]
[Round "7"]
[White "Bluebaum, Matthias"]
[Black "Navara, David"]
[Result "0-1"]
[Board "246"]
[TimeControl "180+1"]
[WhiteFideId "24651516"]
[BlackFideId "309095"]
[WhiteElo "3081"]
[BlackElo "3013"]
[WhiteTeam "GER"]
[BlackTeam "CZE"]
[WhiteClock "0:00:02"]
[BlackClock "0:00:07"]

1. d4 {[%clk 0:03:00]}  Nf6 {[%clk 0:03:00]} 2. c4 {[%clk 0:03:01]}  g6 {[%clk 0:03:00]} 3. Nc3 {[%clk 0:03:02]}  d5 {[%clk 0:03:01]} 4. cxd5 {[%clk 0:03:03]}  Nxd5 {[%clk 0:03:02]} 5. e4 {[%clk 0:03:03]}  Nxc3 {[%clk 0:03:02]} 6. bxc3 {[%clk 0:03:04]}  Bg7 {[%clk 0:03:03]} 7. Nf3 {[%clk 0:03:05]}  c5 {[%clk 0:03:03]} 8. Bb5+ {[%clk 0:03:05]}  Nc6 {[%clk 0:03:03]} 9. O-O {[%clk 0:03:06]}  O-O {[%clk 0:03:02]} 10. Bxc6 {[%clk 0:03:06]}  bxc6 {[%clk 0:03:02]} 11. Qc2 {[%clk 0:03:06]}  cxd4 {[%clk 0:02:56]} 12. cxd4 {[%clk 0:03:07]}  Bg4 {[%clk 0:02:50]} 13. Ne5 {[%clk 0:03:07]}  Qxd4 {[%clk 0:02:51]} 14. Bb2 {[%clk 0:03:07]}  Qb6 {[%clk 0:02:47]} 15. Rab1 {[%clk 0:03:08]}  Bxe5 {[%clk 0:02:35]} 16. Bxe5 {[%clk 0:03:09]}  Qa6 {[%clk 0:02:23]} 17. Rfc1 {[%clk 0:03:03]}  f6 {[%clk 0:02:10]} 18. Bd4 {[%clk 0:02:57]}  Be6 {[%clk 0:02:05]} 19. a4 {[%clk 0:02:43]}  Rfb8 {[%clk 0:01:52]} 20. h4 {[%clk 0:02:27]}  Kf7 {[%clk 0:01:44]} 21. Rxb8 {[%clk 0:02:11]}  Rxb8 {[%clk 0:01:45]} 22. Qxc6 {[%clk 0:02:11]}  Qxc6 {[%clk 0:01:44]} 23. Rxc6 {[%clk 0:02:12]}  Rb1+ {[%clk 0:01:38]} 24. Kh2 {[%clk 0:02:12]}  Rb4 {[%clk 0:01:39]} 25. Bxa7 {[%clk 0:01:53]}  Rxa4 {[%clk 0:01:34]} 26. Rc7 {[%clk 0:01:51]}  Rxe4 {[%clk 0:01:34]} 27. Bc5 {[%clk 0:01:50]}  Bd5 {[%clk 0:01:27]} 28. f3 {[%clk 0:01:48]}  Re2 {[%clk 0:01:24]} 29. Kg1 {[%clk 0:01:43]}  h6 {[%clk 0:01:22]} 30. Kf1 {[%clk 0:01:41]}  Re6 {[%clk 0:01:20]} 31. Kf2 {[%clk 0:01:38]}  g5 {[%clk 0:01:20]} 32. hxg5 {[%clk 0:01:35]}  hxg5 {[%clk 0:01:21]} 33. Bb4 {[%clk 0:01:32]}  f5 {[%clk 0:01:20]} 34. Ba3 {[%clk 0:01:25]}  Kf6 {[%clk 0:01:14]} 35. Bb2+ {[%clk 0:01:26]}  Kg6 {[%clk 0:01:14]} 36. Ba3 {[%clk 0:01:26]}  Ra6 {[%clk 0:01:08]} 37. Bxe7 {[%clk 0:01:26]}  Ra2+ {[%clk 0:01:09]} 38. Kg1 {[%clk 0:01:23]}  g4 {[%clk 0:01:09]} 39. Bd6 {[%clk 0:00:58]}  gxf3 {[%clk 0:01:07]} 40. gxf3 {[%clk 0:00:59]}  Bxf3 {[%clk 0:01:07]} 41. Bf4 {[%clk 0:00:54]}  Kh5 {[%clk 0:00:55]} 42. Rg7 {[%clk 0:00:51]}  Kh4 {[%clk 0:00:56]} 43. Kf1 {[%clk 0:00:37]}  Ra4 {[%clk 0:00:49]} 44. Bg3+ {[%clk 0:00:27]}  Kh3 {[%clk 0:00:50]} 45. Kf2 {[%clk 0:00:27]}  Bh5 {[%clk 0:00:50]} 46. Bd6 {[%clk 0:00:24]}  f4 {[%clk 0:00:47]} 47. Bxf4 {[%clk 0:00:18]}  Rxf4+ {[%clk 0:00:48]} 48. Ke3 {[%clk 0:00:19]}  Ra4 {[%clk 0:00:44]} 49. Rg1 {[%clk 0:00:17]}  Bg4 {[%clk 0:00:37]} 50. Rh1+ {[%clk 0:00:18]}  Kg2 {[%clk 0:00:35]} 51. Rh8 {[%clk 0:00:18]}  Kg3 {[%clk 0:00:31]} 52. Rg8 {[%clk 0:00:17]}  Ra7 {[%clk 0:00:28]} 53. Ke4 {[%clk 0:00:15]}  Re7+ {[%clk 0:00:28]} 54. Kd4 {[%clk 0:00:15]}  Kf4 {[%clk 0:00:29]} 55. Rh8 {[%clk 0:00:13]}  Rd7+ {[%clk 0:00:29]} 56. Kc4 {[%clk 0:00:14]}  Ke5 {[%clk 0:00:28]} 57. Rh4 {[%clk 0:00:09]}  Bf5 {[%clk 0:00:20]} 58. Rh5 {[%clk 0:00:08]}  Rc7+ {[%clk 0:00:20]} 59. Kb5 {[%clk 0:00:08]}  Rc1 {[%clk 0:00:18]} 60. Rg5 {[%clk 0:00:07]}  Ke4 {[%clk 0:00:19]} 61. Rh5 {[%clk 0:00:07]}  Bd7+ {[%clk 0:00:19]} 62. Kb4 {[%clk 0:00:08]}  Kd4 {[%clk 0:00:15]} 63. Rh4+ {[%clk 0:00:08]}  Kd3 {[%clk 0:00:15]} 64. Rh5 {[%clk 0:00:06]}  Be6 {[%clk 0:00:12]} 65. Rc5 {[%clk 0:00:04]}  Rb1+ {[%clk 0:00:11]} 66. Ka5 {[%clk 0:00:05]}  Bc4 {[%clk 0:00:10]} 67. Rh5 {[%clk 0:00:03]}  Kd4 {[%clk 0:00:11]} 68. Rg5 {[%clk 0:00:04]}  Bd5 {[%clk 0:00:11]} 69. Ka6 {[%clk 0:00:02]}  Kc5 {[%clk 0:00:11]} 70. Ka7 {[%clk 0:00:02]}  Rb7+ {[%clk 0:00:11]} 71. Ka6 {[%clk 0:00:02]}  Rf7 {[%clk 0:00:08]} 72. Rh5 {[%clk 0:00:02]}  Rg7 {[%clk 0:00:07]} 73. Rf5 {[%clk 0:00:02]}  Rg8 {[%clk 0:00:08]} 74. Ka7 {[%clk 0:00:02]}  Ra8# {[%clk 0:00:07]} 0-1

[Event "January 9 Early 2024"]
[Site "https://www.chess.com"]
[Date "2024.01.11"]
[Round "7"]
[White "Goltseva, Ekaterina"]
[Black "Mabusela, Johannes Manyedi"]
[Result "0-1"]
[Board "247"]
[TimeControl "180+1"]
[WhiteFideId "24173770"]
[BlackFideId "14300702"]
[WhiteElo "2586"]
[BlackElo "2420"]
[WhiteTeam "RUS"]
[BlackTeam "RSA"]
[WhiteClock "0:00:03"]
[BlackClock "0:00:09"]

1. e4 {[%clk 0:03:00]}  e6 {[%clk 0:02:57]} 2. d4 {[%clk 0:02:59]}  d5 {[%clk 0:02:57]} 3. exd5 {[%clk 0:02:59]}  exd5 {[%clk 0:02:57]} 4. Bd3 {[%clk 0:03:00]}  Nf6 {[%clk 0:02:55]} 5. Nf3 {[%clk 0:02:59]}  Bd6 {[%clk 0:02:55]} 6. Bg5 {[%clk 0:02:59]}  O-O {[%clk 0:02:54]} 7. O-O {[%clk 0:02:56]}  Bg4 {[%clk 0:02:53]} 8. h3 {[%clk 0:02:52]}  Bh5 {[%clk 0:02:52]} 9. g3 {[%clk 0:02:44]}  Nbd7 {[%clk 0:02:45]} 10. g4 {[%clk 0:02:44]}  Bg6 {[%clk 0:02:43]} 11. Nc3 {[%clk 0:02:42]}  c6 {[%clk 0:02:42]} 12. Ne2 {[%clk 0:02:40]}  Qc7 {[%clk 0:02:41]} 13. Bh4 {[%clk 0:02:31]}  Ne4 {[%clk 0:02:37]} 14. c4 {[%clk 0:02:10]}  f5 {[%clk 0:02:28]} 15. g5 {[%clk 0:02:07]}  dxc4 {[%clk 0:02:22]} 16. Bxc4+ {[%clk 0:02:06]}  Bf7 {[%clk 0:02:22]} 17. Bxf7+ {[%clk 0:01:59]}  Rxf7 {[%clk 0:02:22]} 18. Nc3 {[%clk 0:01:54]}  Nb6 {[%clk 0:02:19]} 19. Qb3 {[%clk 0:01:46]}  Kh8 {[%clk 0:01:44]} 20. Rac1 {[%clk 0:01:39]}  Qd7 {[%clk 0:01:40]} 21. Ne5 {[%clk 0:01:33]}  Bxe5 {[%clk 0:01:36]} 22. dxe5 {[%clk 0:01:34]}  Nd2 {[%clk 0:01:25]} 23. e6 {[%clk 0:01:15]}  Nxb3 {[%clk 0:01:21]} 24. exd7 {[%clk 0:01:14]}  Nxc1 {[%clk 0:01:18]} 25. d8=Q+ {[%clk 0:01:12]}  Rxd8 {[%clk 0:01:17]} 26. g6 {[%clk 0:01:12]}  hxg6 {[%clk 0:01:10]} 27. Bxd8 {[%clk 0:01:11]}  Nd3 {[%clk 0:01:09]} 28. b3 {[%clk 0:01:04]}  Rd7 {[%clk 0:01:05]} 29. Bg5 {[%clk 0:00:43]}  Ne5 {[%clk 0:01:04]} 30. Kg2 {[%clk 0:00:42]}  Rd3 {[%clk 0:01:01]} 31. Re1 {[%clk 0:00:21]}  Nf3 {[%clk 0:00:53]} 32. Re3 {[%clk 0:00:21]}  Rxc3 {[%clk 0:00:29]} 33. Kxf3 {[%clk 0:00:13]}  Rxe3+ {[%clk 0:00:22]} 34. Bxe3 {[%clk 0:00:14]}  Kg8 {[%clk 0:00:20]} 35. a4 {[%clk 0:00:13]}  Kf7 {[%clk 0:00:19]} 36. a5 {[%clk 0:00:12]}  Nc8 {[%clk 0:00:19]} 37. Kf4 {[%clk 0:00:13]}  Ke6 {[%clk 0:00:19]} 38. Kg5 {[%clk 0:00:13]}  Kf7 {[%clk 0:00:19]} 39. Bd4 {[%clk 0:00:05]}  b6 {[%clk 0:00:18]} 40. a6 {[%clk 0:00:04]}  c5 {[%clk 0:00:18]} 41. Be5 {[%clk 0:00:03]}  Ne7 {[%clk 0:00:17]} 42. Bb8 {[%clk 0:00:03]}  Nc6 {[%clk 0:00:17]} 43. Bc7 {[%clk 0:00:03]}  Nb4 {[%clk 0:00:15]} 44. Bxb6 {[%clk 0:00:03]}  Nxa6 {[%clk 0:00:14]} 45. Bxa7 {[%clk 0:00:03]}  Nc7 {[%clk 0:00:13]} 46. Bb6 {[%clk 0:00:02]}  Ne6+ {[%clk 0:00:13]} 47. Kh4 {[%clk 0:00:03]}  Kf6 {[%clk 0:00:12]} 48. Kg3 {[%clk 0:00:02]}  Ke5 {[%clk 0:00:12]} 49. Kf3 {[%clk 0:00:02]}  Nd4+ {[%clk 0:00:11]} 50. Ke3 {[%clk 0:00:02]}  Nxb3 {[%clk 0:00:12]} 51. Kd3 {[%clk 0:00:02]}  Kd5 {[%clk 0:00:12]} 52. Bd8 {[%clk 0:00:02]}  Nd4 {[%clk 0:00:12]} 53. Bc7 {[%clk 0:00:01]}  Ne6 {[%clk 0:00:12]} 54. Bb8 {[%clk 0:00:01]}  g5 {[%clk 0:00:12]} 55. Kc3 {[%clk 0:00:01]}  Nf4 {[%clk 0:00:12]} 56. Ba7 {[%clk 0:00:02]}  Nxh3 {[%clk 0:00:11]} 57. Kd3 {[%clk 0:00:03]}  Nxf2+ {[%clk 0:00:11]} 58. Ke3 {[%clk 0:00:04]}  Ne4 {[%clk 0:00:12]} 59. Kf3 {[%clk 0:00:05]}  g4+ {[%clk 0:00:12]} 60. Ke3 {[%clk 0:00:06]}  c4 {[%clk 0:00:12]} 61. Kf4 {[%clk 0:00:06]}  c3 {[%clk 0:00:11]} 62. Kxf5 {[%clk 0:00:06]}  c2 {[%clk 0:00:11]} 63. Be3 {[%clk 0:00:07]}  Nc3 {[%clk 0:00:11]} 64. Kxg4 {[%clk 0:00:07]}  Ke4 {[%clk 0:00:10]} 65. Bd2 {[%clk 0:00:05]}  Nb1 {[%clk 0:00:09]} 66. Bc1 {[%clk 0:00:06]}  Kd3 {[%clk 0:00:09]} 67. Kg5 {[%clk 0:00:06]}  Ke2 {[%clk 0:00:09]} 68. Kg6 {[%clk 0:00:05]}  Kd1 {[%clk 0:00:09]} 69. Bb2 {[%clk 0:00:03]}  Nd2 {[%clk 0:00:09]} 70. Kxg7 {[%clk 0:00:03]}  Nc4 {[%clk 0:00:09]} 0-1

[Event "January 9 Early 2024"]
[Site "https://www.chess.com"]
[Date "2024.01.11"]
[Round "7"]
[White "Laddha, Shubh Jayesh"]
[Black "Marchesich, Giovanni"]
[Result "1-0"]
[Board "248"]
[TimeControl "180+1"]
[WhiteFideId "30942799"]
[BlackFideId "2824790"]
[WhiteElo "2567"]
[BlackElo "2382"]
[WhiteTeam "USA"]
[BlackTeam "ITA"]
[WhiteClock "0:00:04"]
[BlackClock "0:00:01"]

1. Nf3 {[%clk 0:03:00]}  g6 {[%clk 0:02:59]} 2. c4 {[%clk 0:03:00]}  Bg7 {[%clk 0:02:59]} 3. g3 {[%clk 0:03:00]}  d6 {[%clk 0:02:57]} 4. Bg2 {[%clk 0:03:01]}  Bd7 {[%clk 0:02:51]} 5. O-O {[%clk 0:03:01]}  Qc8 {[%clk 0:02:51]} 6. Re1 {[%clk 0:02:53]}  c5 {[%clk 0:02:47]} 7. d4 {[%clk 0:02:52]}  Nc6 {[%clk 0:02:43]} 8. d5 {[%clk 0:02:49]}  Nd4 {[%clk 0:02:39]} 9. Nc3 {[%clk 0:02:44]}  Nxf3+ {[%clk 0:02:35]} 10. Bxf3 {[%clk 0:02:44]}  Nf6 {[%clk 0:02:35]} 11. e4 {[%clk 0:02:43]}  O-O {[%clk 0:02:34]} 12. Bf4 {[%clk 0:02:40]}  Ng4 {[%clk 0:02:33]} 13. Bg2 {[%clk 0:02:28]}  Bd4 {[%clk 0:02:31]} 14. Re2 {[%clk 0:02:22]}  Ne5 {[%clk 0:02:31]} 15. Qb3 {[%clk 0:01:42]}  Bg4 {[%clk 0:02:26]} 16. Rd2 {[%clk 0:01:34]}  Nf3+ {[%clk 0:02:25]} 17. Bxf3 {[%clk 0:01:34]}  Bxf3 {[%clk 0:02:26]} 18. Nb5 {[%clk 0:01:27]}  Bxe4 {[%clk 0:02:03]} 19. Nxd4 {[%clk 0:01:26]}  cxd4 {[%clk 0:02:03]} 20. Rxd4 {[%clk 0:01:27]}  Bf5 {[%clk 0:02:01]} 21. Re1 {[%clk 0:01:26]}  Re8 {[%clk 0:01:59]} 22. Rd2 {[%clk 0:01:25]}  Qc7 {[%clk 0:01:54]} 23. Qc3 {[%clk 0:01:20]}  Rac8 {[%clk 0:01:52]} 24. Bh6 {[%clk 0:01:19]}  f6 {[%clk 0:01:52]} 25. b3 {[%clk 0:01:19]}  b5 {[%clk 0:01:51]} 26. Rde2 {[%clk 0:01:09]}  Kf7 {[%clk 0:01:47]} 27. Qf3 {[%clk 0:00:29]}  Qd7 {[%clk 0:01:38]} 28. Qf4 {[%clk 0:00:26]}  bxc4 {[%clk 0:01:16]} 29. bxc4 {[%clk 0:00:26]}  Bd3 {[%clk 0:01:09]} 30. Re6 {[%clk 0:00:24]}  Bxc4 {[%clk 0:00:55]} 31. Qe4 {[%clk 0:00:19]}  Rc5 {[%clk 0:00:37]} 32. Rd1 {[%clk 0:00:17]}  Bxd5 {[%clk 0:00:33]} 33. Rxd5 {[%clk 0:00:17]}  Rxd5 {[%clk 0:00:33]} 34. Rxf6+ {[%clk 0:00:17]}  exf6 {[%clk 0:00:31]} 35. Qxd5+ {[%clk 0:00:18]}  Qe6 {[%clk 0:00:30]} 36. Qb7+ {[%clk 0:00:18]}  Re7 {[%clk 0:00:30]} 37. Qb8 {[%clk 0:00:16]}  Qe1+ {[%clk 0:00:27]} 38. Kg2 {[%clk 0:00:17]}  Qe4+ {[%clk 0:00:27]} 39. Kg1 {[%clk 0:00:17]}  Qb7 {[%clk 0:00:11]} 40. Qf8+ {[%clk 0:00:17]}  Ke6 {[%clk 0:00:11]} 41. Qg8+ {[%clk 0:00:18]}  Kd7 {[%clk 0:00:11]} 42. Bd2 {[%clk 0:00:09]}  Qb1+ {[%clk 0:00:08]} 43. Kg2 {[%clk 0:00:10]}  Qe4+ {[%clk 0:00:09]} 44. Kg1 {[%clk 0:00:10]}  Qe6 {[%clk 0:00:08]} 45. Qb8 {[%clk 0:00:07]}  Kc6 {[%clk 0:00:07]} 46. Qa8+ {[%clk 0:00:07]}  Kb5 {[%clk 0:00:06]} 47. Qb8+ {[%clk 0:00:06]}  Kc4 {[%clk 0:00:05]} 48. Qb4+ {[%clk 0:00:06]}  Kd5 {[%clk 0:00:03]} 49. Qb5+ {[%clk 0:00:07]}  Kd4 {[%clk 0:00:03]} 50. Qb4+ {[%clk 0:00:07]}  Kd3 {[%clk 0:00:04]} 51. Qc3+ {[%clk 0:00:07]}  Ke2 {[%clk 0:00:04]} 52. Be3 {[%clk 0:00:07]}  Qe5 {[%clk 0:00:03]} 53. Qd2+ {[%clk 0:00:06]}  Kf3 {[%clk 0:00:04]} 54. Qd1+ {[%clk 0:00:07]}  Ke4 {[%clk 0:00:04]} 55. Qc2+ {[%clk 0:00:07]}  Kd5 {[%clk 0:00:04]} 56. Qb3+ {[%clk 0:00:08]}  Kc6 {[%clk 0:00:04]} 57. Qa4+ {[%clk 0:00:08]}  Kd5 {[%clk 0:00:04]} 58. Qb5+ {[%clk 0:00:08]}  Ke6 {[%clk 0:00:04]} 59. Qc4+ {[%clk 0:00:08]}  Qd5 {[%clk 0:00:03]} 60. Qg4+ {[%clk 0:00:08]}  Kf7 {[%clk 0:00:03]} 61. Qh4 {[%clk 0:00:08]}  Kg8 {[%clk 0:00:02]} 62. Qxf6 {[%clk 0:00:08]}  Qf7 {[%clk 0:00:02]} 63. Qd4 {[%clk 0:00:08]}  Qe6 {[%clk 0:00:01]} 64. Qa4 {[%clk 0:00:06]}  Qe5 {[%clk 0:00:02]} 65. Qc6 {[%clk 0:00:05]}  Rf7 {[%clk 0:00:01]} 66. Kg2 {[%clk 0:00:05]}  Qe7 {[%clk 0:00:02]} 67. Qd5 {[%clk 0:00:05]}  Qf6 {[%clk 0:00:02]} 68. Kg1 {[%clk 0:00:04]}  Qe7 {[%clk 0:00:02]} 69. Bd4 {[%clk 0:00:05]}  Qe8 {[%clk 0:00:02]} 70. Bb2 {[%clk 0:00:05]}  Qe7 {[%clk 0:00:01]} 71. Qd4 {[%clk 0:00:04]} 1-0

[Event "January 9 Early 2024"]
[Site "https://www.chess.com"]
[Date "2024.01.11"]
[Round "7"]
[White "Skaric, Djuro"]
[Black "Sahin, Sarp"]
[Result "1-0"]
[Board "249"]
[TimeControl "180+1"]
[WhiteFideId "934569"]
[BlackFideId "51605066"]
[WhiteElo "2304"]
[BlackElo "2424"]
[WhiteTeam "SRB"]
[BlackTeam "TUR"]
[WhiteClock "0:00:06"]
[BlackClock "0:00:01"]

1. g3 {[%clk 0:03:00]}  d5 {[%clk 0:02:56]} 2. Bg2 {[%clk 0:03:01]}  Nf6 {[%clk 0:02:56]} 3. d3 {[%clk 0:03:02]}  Bf5 {[%clk 0:02:55]} 4. Nf3 {[%clk 0:03:03]}  e6 {[%clk 0:02:55]} 5. O-O {[%clk 0:03:04]}  h6 {[%clk 0:02:55]} 6. Nc3 {[%clk 0:03:05]}  Be7 {[%clk 0:02:54]} 7. h3 {[%clk 0:03:04]}  O-O {[%clk 0:02:54]} 8. Kh2 {[%clk 0:02:33]}  c5 {[%clk 0:02:52]} 9. Ne5 {[%clk 0:02:14]}  Bh7 {[%clk 0:02:43]} 10. e4 {[%clk 0:02:13]}  Nc6 {[%clk 0:02:38]} 11. f4 {[%clk 0:02:07]}  d4 {[%clk 0:02:15]} 12. Nxc6 {[%clk 0:02:05]}  bxc6 {[%clk 0:02:13]} 13. Ne2 {[%clk 0:01:53]}  Rb8 {[%clk 0:02:08]} 14. g4 {[%clk 0:01:52]}  Qc7 {[%clk 0:02:03]} 15. Ng3 {[%clk 0:01:51]}  Rfd8 {[%clk 0:01:57]} 16. b3 {[%clk 0:01:50]}  a5 {[%clk 0:01:54]} 17. a4 {[%clk 0:01:49]}  Nd7 {[%clk 0:01:43]} 18. Bd2 {[%clk 0:01:48]}  Nf8 {[%clk 0:01:42]} 19. Qe1 {[%clk 0:01:47]}  Ra8 {[%clk 0:01:42]} 20. Ne2 {[%clk 0:01:32]}  f6 {[%clk 0:01:34]} 21. h4 {[%clk 0:01:30]}  f5 {[%clk 0:01:31]} 22. gxf5 {[%clk 0:01:14]}  exf5 {[%clk 0:01:27]} 23. e5 {[%clk 0:01:13]}  Re8 {[%clk 0:01:21]} 24. Qg3 {[%clk 0:01:12]}  Ra6 {[%clk 0:01:14]} 25. h5 {[%clk 0:01:06]}  Bd8 {[%clk 0:00:57]} 26. Bf3 {[%clk 0:01:05]}  Qf7 {[%clk 0:00:54]} 27. Kh3 {[%clk 0:01:05]}  Kh8 {[%clk 0:00:43]} 28. Rg1 {[%clk 0:01:05]}  Ne6 {[%clk 0:00:38]} 29. Rg2 {[%clk 0:01:04]}  Be7 {[%clk 0:00:28]} 30. Rag1 {[%clk 0:01:03]}  Bf8 {[%clk 0:00:26]} 31. Qe1 {[%clk 0:01:02]}  Qa7 {[%clk 0:00:23]} 32. Qh4 {[%clk 0:00:50]}  Re7 {[%clk 0:00:22]} 33. Kh2 {[%clk 0:00:37]}  Nc7 {[%clk 0:00:21]} 34. Rg3 {[%clk 0:00:34]}  Ne6 {[%clk 0:00:12]} 35. Bg2 {[%clk 0:00:34]}  Qd7 {[%clk 0:00:10]} 36. Bh3 {[%clk 0:00:34]}  Nd8 {[%clk 0:00:08]} 37. R3g2 {[%clk 0:00:34]}  Rf7 {[%clk 0:00:07]} 38. Rf1 {[%clk 0:00:31]}  Ne6 {[%clk 0:00:06]} 39. Ng1 {[%clk 0:00:31]}  Ra7 {[%clk 0:00:04]} 40. Qe1 {[%clk 0:00:31]}  Qd8 {[%clk 0:00:03]} 41. Nf3 {[%clk 0:00:30]}  Be7 {[%clk 0:00:02]} 42. Rfg1 {[%clk 0:00:24]}  Rf8 {[%clk 0:00:02]} 43. Rg6 {[%clk 0:00:21]}  Bxg6 {[%clk 0:00:01]} 44. Rxg6 {[%clk 0:00:21]}  Qd7 {[%clk 0:00:02]} 45. Qg1 {[%clk 0:00:19]}  Rf7 {[%clk 0:00:02]} 46. Qg3 {[%clk 0:00:19]}  Nf8 {[%clk 0:00:02]} 47. Nh4 {[%clk 0:00:17]}  Nxg6 {[%clk 0:00:03]} 48. hxg6 {[%clk 0:00:14]}  Rf8 {[%clk 0:00:02]} 49. Nxf5 {[%clk 0:00:09]}  Rxf5 {[%clk 0:00:02]} 50. Qg4 {[%clk 0:00:10]}  Qd8 {[%clk 0:00:01]} 51. Qxf5 {[%clk 0:00:10]}  Rb7 {[%clk 0:00:01]} 52. Qe4 {[%clk 0:00:09]}  Rc7 {[%clk 0:00:01]} 53. Qf3 {[%clk 0:00:09]}  Rb7 {[%clk 0:00:01]} 54. Qg4 {[%clk 0:00:09]}  Rb6 {[%clk 0:00:01]} 55. f5 {[%clk 0:00:09]}  Rb8 {[%clk 0:00:01]} 56. Be1 {[%clk 0:00:09]}  Bf6 {[%clk 0:00:01]} 57. exf6 {[%clk 0:00:08]}  Qxf6 {[%clk 0:00:02]} 58. Bg3 {[%clk 0:00:08]}  Qf8 {[%clk 0:00:03]} 59. Bg2 {[%clk 0:00:08]}  Rc8 {[%clk 0:00:03]} 60. Be4 {[%clk 0:00:08]}  Re8 {[%clk 0:00:03]} 61. Bh4 {[%clk 0:00:09]}  Qd6+ {[%clk 0:00:02]} 62. Kh3 {[%clk 0:00:08]}  Qe5 {[%clk 0:00:02]} 63. Qh5 {[%clk 0:00:07]}  Qd6 {[%clk 0:00:01]} 64. f6 {[%clk 0:00:07]}  Qe5 {[%clk 0:00:01]} 65. fxg7+ {[%clk 0:00:07]}  Kxg7 {[%clk 0:00:01]} 66. Qxe5+ {[%clk 0:00:06]}  Rxe5 {[%clk 0:00:02]} 67. Bg3 {[%clk 0:00:07]}  Rh5+ {[%clk 0:00:01]} 68. Kg4 {[%clk 0:00:06]}  Rg5+ {[%clk 0:00:02]} 69. Kf3 {[%clk 0:00:07]}  h5 {[%clk 0:00:02]} 70. Bf4 {[%clk 0:00:07]}  Rg1 {[%clk 0:00:02]} 71. Bd6 {[%clk 0:00:07]}  h4 {[%clk 0:00:02]} 72. Bxc5 {[%clk 0:00:07]}  h3 {[%clk 0:00:02]} 73. Bxd4+ {[%clk 0:00:07]}  Kh6 {[%clk 0:00:01]} 74. Be3+ {[%clk 0:00:06]} 1-0

[Event "January 9 Early 2024"]
[Site "https://www.chess.com"]
[Date "2024.01.11"]
[Round "7"]
[White "Kubicka, Anna"]
[Black "Sieciechowicz, Marcin"]
[Result "0-1"]
[Board "250"]
[TimeControl "180+1"]
[WhiteFideId "1152254"]
[BlackFideId "1130170"]
[WhiteElo "2456"]
[BlackElo "2676"]
[WhiteTeam "POL"]
[BlackTeam "POL"]
[WhiteClock "0:00:02"]
[BlackClock "0:00:04"]

1. e4 {[%clk 0:03:00]}  e6 {[%clk 0:02:59]} 2. d4 {[%clk 0:03:00]}  d5 {[%clk 0:02:58]} 3. Nd2 {[%clk 0:03:01]}  Nf6 {[%clk 0:02:57]} 4. e5 {[%clk 0:02:57]}  Nfd7 {[%clk 0:02:53]} 5. Bd3 {[%clk 0:02:57]}  c5 {[%clk 0:02:52]} 6. c3 {[%clk 0:02:57]}  b6 {[%clk 0:02:52]} 7. a4 {[%clk 0:02:52]}  Ba6 {[%clk 0:02:52]} 8. Bb5 {[%clk 0:02:51]}  Bxb5 {[%clk 0:02:45]} 9. axb5 {[%clk 0:02:52]}  Be7 {[%clk 0:02:27]} 10. Ngf3 {[%clk 0:02:51]}  a5 {[%clk 0:02:27]} 11. O-O {[%clk 0:02:31]}  O-O {[%clk 0:02:25]} 12. Qe2 {[%clk 0:02:20]}  Re8 {[%clk 0:02:19]} 13. c4 {[%clk 0:02:19]}  Nf8 {[%clk 0:02:14]} 14. Rd1 {[%clk 0:02:03]}  Nbd7 {[%clk 0:02:12]} 15. Nb3 {[%clk 0:01:54]}  a4 {[%clk 0:02:05]} 16. Nbd2 {[%clk 0:01:54]}  Qc7 {[%clk 0:02:05]} 17. Nf1 {[%clk 0:01:29]}  cxd4 {[%clk 0:02:05]} 18. Nxd4 {[%clk 0:01:25]}  Qxe5 {[%clk 0:01:58]} 19. Qf3 {[%clk 0:01:14]}  Qe4 {[%clk 0:01:51]} 20. Qxe4 {[%clk 0:00:57]}  dxe4 {[%clk 0:01:52]} 21. Nc6 {[%clk 0:00:57]}  Nc5 {[%clk 0:01:50]} 22. Be3 {[%clk 0:00:52]}  Nb3 {[%clk 0:01:38]} 23. Nxe7+ {[%clk 0:00:51]}  Rxe7 {[%clk 0:01:38]} 24. Ra3 {[%clk 0:00:50]}  Nd7 {[%clk 0:01:31]} 25. Nd2 {[%clk 0:00:46]}  Nbc5 {[%clk 0:01:21]} 26. b4 {[%clk 0:00:40]}  Nd3 {[%clk 0:01:21]} 27. Nxe4 {[%clk 0:00:37]}  Nxb4 {[%clk 0:01:18]} 28. Rda1 {[%clk 0:00:26]}  Nc2 {[%clk 0:01:16]} 29. Rxa4 {[%clk 0:00:27]}  Rxa4 {[%clk 0:01:17]} 30. Rxa4 {[%clk 0:00:26]}  Nxe3 {[%clk 0:01:18]} 31. fxe3 {[%clk 0:00:27]}  f5 {[%clk 0:01:12]} 32. Ra8+ {[%clk 0:00:22]}  Nf8 {[%clk 0:01:05]} 33. Nd6 {[%clk 0:00:18]}  Rd7 {[%clk 0:00:55]} 34. Nc8 {[%clk 0:00:18]}  Rd8 {[%clk 0:00:50]} 35. Nxb6 {[%clk 0:00:17]}  Rxa8 {[%clk 0:00:49]} 36. Nxa8 {[%clk 0:00:18]}  Nd7 {[%clk 0:00:48]} 37. b6 {[%clk 0:00:10]}  Kf7 {[%clk 0:00:49]} 38. b7 {[%clk 0:00:10]}  Ke7 {[%clk 0:00:46]} 39. c5 {[%clk 0:00:10]}  Nb8 {[%clk 0:00:46]} 40. Nb6 {[%clk 0:00:09]}  Kd8 {[%clk 0:00:46]} 41. Nc8 {[%clk 0:00:06]}  Kc7 {[%clk 0:00:42]} 42. Nd6 {[%clk 0:00:06]}  Kc6 {[%clk 0:00:42]} 43. Ne8 {[%clk 0:00:06]}  g6 {[%clk 0:00:38]} 44. Ng7 {[%clk 0:00:06]}  e5 {[%clk 0:00:35]} 45. Ne8 {[%clk 0:00:04]}  Kxb7 {[%clk 0:00:27]} 46. Nf6 {[%clk 0:00:04]}  h5 {[%clk 0:00:22]} 47. Ng8 {[%clk 0:00:04]}  Nc6 {[%clk 0:00:22]} 48. Kf2 {[%clk 0:00:03]}  Ka6 {[%clk 0:00:22]} 49. Kf3 {[%clk 0:00:03]}  Kb5 {[%clk 0:00:22]} 50. e4 {[%clk 0:00:03]}  f4 {[%clk 0:00:21]} 51. Nf6 {[%clk 0:00:02]}  Kxc5 {[%clk 0:00:20]} 52. g3 {[%clk 0:00:03]}  Nd4+ {[%clk 0:00:20]} 53. Kg2 {[%clk 0:00:02]}  Kd6 {[%clk 0:00:19]} 54. Ne8+ {[%clk 0:00:02]}  Ke6 {[%clk 0:00:19]} 55. Nc7+ {[%clk 0:00:02]}  Kd7 {[%clk 0:00:18]} 56. Nd5 {[%clk 0:00:02]}  Ke6 {[%clk 0:00:17]} 57. Nc7+ {[%clk 0:00:03]}  Kf7 {[%clk 0:00:17]} 58. Nd5 {[%clk 0:00:03]}  g5 {[%clk 0:00:18]} 59. Nc3 {[%clk 0:00:03]}  g4 {[%clk 0:00:17]} 60. gxf4 {[%clk 0:00:03]}  exf4 {[%clk 0:00:17]} 61. Nd5 {[%clk 0:00:04]}  Ne6 {[%clk 0:00:16]} 62. h3 {[%clk 0:00:03]}  Kg6 {[%clk 0:00:16]} 63. hxg4 {[%clk 0:00:03]}  hxg4 {[%clk 0:00:17]} 64. e5 {[%clk 0:00:04]}  Kf5 {[%clk 0:00:16]} 65. Nf6 {[%clk 0:00:05]}  Ng5 {[%clk 0:00:15]} 66. Kf2 {[%clk 0:00:05]}  Ne6 {[%clk 0:00:10]} 67. Kg2 {[%clk 0:00:05]}  Nc5 {[%clk 0:00:09]} 68. Kf2 {[%clk 0:00:01]}  Nd3+ {[%clk 0:00:09]} 69. Ke2 {[%clk 0:00:02]}  Nxe5 {[%clk 0:00:10]} 70. Nd5 {[%clk 0:00:02]}  g3 {[%clk 0:00:07]} 71. Nc3 {[%clk 0:00:01]}  f3+ {[%clk 0:00:05]} 72. Ke3 {[%clk 0:00:02]}  g2 {[%clk 0:00:04]} 73. Kf2 {[%clk 0:00:02]}  Ng4+ {[%clk 0:00:03]} 74. Kg1 {[%clk 0:00:02]}  Kf4 {[%clk 0:00:04]} 75. Nd5+ {[%clk 0:00:02]}  Kg3 {[%clk 0:00:03]} 76. Ne3 {[%clk 0:00:02]}  f2# {[%clk 0:00:04]} 0-1